fUSD/lending_fUSD_20260122
["ID","MTS","AMOUNT","RATE_DAILY","PERIOD"]
[403054746,1769109040673,-500.0,0.00017699,2]
[403054748,1769109040683,-500.0,0.00017699,2]
[403054750,1769109040701,-500.0,0.00017699,2]
[403054752,1769109040718,-500.0,0.00017699,2]
[403054754,1769109040728,-500.0,0.00017699,2]
[403054756,1769109040738,-500.0,0.00017699,2]
[403054758,1769109040748,-500.0,0.00017699,2]
[403054760,1769109040757,-500.0,0.00017699,2]
[403054762,1769109040767,-500.0,0.00017699,2]
[403054764,1769109040777,-500.0,0.00017699,2]
[403054766,1769109040786,-500.0,0.00017699,2]
[403054768,1769109040795,-500.0,0.00017699,2]
[403054771,1769109040805,-432.17014674,0.00017699,2]
[403054773,1769109040814,-1935.666,0.000177,2]
[403054774,1769109040823,-1055.446978,0.000177,2]
[403054777,1769109040833,-3893.18782854,0.000177,2]
[403054778,1769109040844,-3706.63757539,0.000177,2]
[403054780,1769109040854,-598.08,0.00017778,2]
[403054782,1769109040863,-151.0,0.00017778,2]
[403054784,1769109040873,-151.0,0.00017778,2]
[403054786,1769109040882,-151.0,0.00017778,2]
[403054788,1769109040892,-151.0,0.00017778,2]
[403054790,1769109040901,-151.0,0.00017778,2]
[403054792,1769109040911,-151.0,0.00017778,2]
[403054794,1769109040920,-500.0,0.00017778,2]
[403054796,1769109040930,-151.0,0.00017778,2]
[403054798,1769109040938,-500.0,0.00017778,2]
[403054800,1769109040948,-151.0,0.00017778,2]
[403054802,1769109040957,-500.0,0.00017778,2]
[403054804,1769109040966,-151.0,0.00017778,2]
[403054806,1769109040976,-500.0,0.00017778,2]
[403054808,1769109040985,-151.0,0.00017778,2]
[403054810,1769109040994,-500.0,0.00017778,2]
[403054812,1769109041003,-500.0,0.00017778,2]
[403054814,1769109041013,-151.0,0.00017778,2]
[403054816,1769109041023,-500.0,0.00017778,2]
[403054818,1769109041033,-222.78650516,0.00017778,2]
[403054820,1769109041042,-500.0,0.00017778,2]
[403054822,1769109041051,-500.0,0.00017778,2]
[403054824,1769109041061,-500.0,0.00017778,2]
[403054826,1769109041070,-500.0,0.00017778,2]
[403054828,1769109041080,-500.0,0.00017778,2]
[403054830,1769109041089,-202.81055086,0.00017778,2]
[403054832,1769109041099,-500.0,0.00017778,2]
[403054834,1769109041109,-500.0,0.00017778,2]
[403054837,1769109041119,-500.0,0.00017778,2]
[403054839,1769109041129,-500.0,0.00017778,2]
[403054841,1769109041140,-151.0,0.00017778,2]
[403054843,1769109041150,-151.0,0.00017778,2]
[403054845,1769109041160,-199.77177277,0.00017778,2]
[403054847,1769109041169,-500.0,0.00017778,2]
[403054849,1769109041179,-500.0,0.00017788,2]
[403054851,1769109041189,-179.8137646,0.00017788,2]
[403054853,1769109041198,-500.0,0.00017788,2]
[403054855,1769109041208,-292.31386135,0.00017788,2]
[403054857,1769109041217,-500.0,0.00017788,2]
[403054859,1769109041227,-500.0,0.00017788,2]
[403054861,1769109041237,-500.0,0.00017788,2]
[403054863,1769109041248,-540.53985067,0.00017788,2]
[403054865,1769109041258,-509.54109476,0.00017788,2]
[403054867,1769109041268,-500.0,0.00017788,2]
[403054869,1769109041278,-500.0,0.00017788,2]
[403054872,1769109041288,-500.0,0.00017788,2]
[403054874,1769109041298,-514.01285189,0.00017788,2]
[403054876,1769109041307,-500.0,0.00017788,2]
[403054878,1769109041317,-500.0,0.00017788,2]
[403054880,1769109041327,-500.0,0.00017788,2]
[403054882,1769109041337,-500.0,0.00017788,2]
[403054884,1769109041346,-551.83023748,0.00017788,2]
[403054886,1769109041356,-500.0,0.00017788,2]
[403054888,1769109041366,-500.0,0.00017788,2]
[403054890,1769109041376,-500.0,0.00017788,2]
[403054892,1769109041385,-500.0,0.00017788,2]
[403054894,1769109041395,-500.0,0.00017788,2]
[403054896,1769109041405,-1000.0,0.000178,2]
[403054897,1769109041414,-500.0,0.00017899,2]
[403054898,1769109041424,-500.0,0.00017899,2]
[403054899,1769109041433,-500.0,0.00017899,2]
[403054900,1769109041443,-500.0,0.00017899,2]
[403054901,1769109041453,-500.0,0.00017899,2]
[403054902,1769109041464,-500.0,0.00017899,2]
[403054903,1769109041474,-500.0,0.00017899,2]
[403054904,1769109041484,-392.91974326,0.00017899,2]
[403054905,1769109041494,-502.97030487,0.00017899,2]
[403054906,1769109041504,-500.0,0.00017899,2]
[403054907,1769109041514,-500.0,0.00017899,2]
[403054908,1769109041525,-500.0,0.00017899,2]
[403054909,1769109041535,-558.7798383,0.00017899,2]
[403054910,1769109041545,-500.0,0.00017899,2]
[403054911,1769109041554,-533.20641898,0.00017899,2]
[403054912,1769109041564,-500.0,0.00017899,2]
[403054913,1769109041574,-500.0,0.00017899,2]
[403054914,1769109041584,-446.76047956,0.00017899,2]
[403054915,1769109041594,-500.0,0.00017899,2]
[403054916,1769109041603,-500.0,0.00017899,2]
[403054917,1769109041613,-500.0,0.00017899,2]
[403054918,1769109041623,-500.0,0.00017899,2]
[403054919,1769109041633,-500.0,0.00017899,2]
[403054920,1769109041643,-500.0,0.00017899,2]
[403054921,1769109041653,-469.96167848,0.00017899,2]
[403054922,1769109041663,-500.0,0.00017899,2]
[403054923,1769109041677,-336.15442434,0.00017899,2]
[403054924,1769109041688,-435.89165436,0.00017899,2]
[403054925,1769109041698,-500.0,0.00017899,2]
[403054926,1769109041711,-500.0,0.00017899,2]
[403054927,1769109041720,-500.0,0.00017899,2]
[403054928,1769109041731,-500.0,0.00017899,2]
[403054931,1769109041742,-150.0,0.00018,7]
[403054932,1769109041752,-598.08,0.00018052,2]
[403054934,1769109041762,-265.93643126,0.00018062,2]
[403054937,1769109041773,-253.34251032,0.00018191,2]
[403054939,1769109041784,-195.0,0.00018191,2]
[403054941,1769109041794,-600.0,0.00018191,2]
[403054943,1769109041803,-250.0,0.00018191,2]
[403054945,1769109041813,-598.08,0.00018326,2]
[403054947,1769109041827,-508.92671197,0.00018326,2]
[403054950,1769109041838,-598.08,0.000186,2]
[403054952,1769109041849,-5528.0,0.000188,3]
[403054954,1769109041859,-598.08,0.00018874,2]
[403054956,1769109041869,-1301.7,0.00019088,2]
[403054958,1769109041879,-598.13307372,0.00019148,2]
[403054960,1769109041890,-5533.0,0.000192,5]
[403054962,1769109041900,-523.0,0.000196,2]
[403054964,1769109041910,-3893.1878285,0.00020319,2]
[403054967,1769109041921,-3706.63757538,0.00020341,2]
[403054969,1769109041931,-2629.87,0.00020951,2]
[403054971,1769109041940,-1301.7,0.00021213,2]
[403054973,1769109041950,-5518.7219224,0.00021297,2]
[403054975,1769109041960,-305.60310685,0.00021797,2]
[403054977,1769109041971,-5000.0,0.00021918,2]
[403054979,1769109041981,-150.33,0.00022073,30]
[403054981,1769109041991,-190.09823783,0.000224,2]
[403054983,1769109042000,-500.0,0.00022613,2]
[403054985,1769109042010,-166.66,0.00022737,2]
[403054987,1769109042020,-7458.72,0.0002274,2]
[403054989,1769109042035,-3893.1878285,0.00022938,2]
[403054992,1769109042045,-3706.63757538,0.00022983,2]
[403054994,1769109042055,-1000.0,0.00023172,2]
[403054996,1769109042065,-1301.7,0.00023338,2]
[403054998,1769109042076,-882.2130654,0.0002337,2]
[403055000,1769109042086,-152.98,0.0002339,2]
[403055002,1769109042096,-166.66,0.00023488,2]
[403055004,1769109042107,-523.0,0.00023627,5]
[403055006,1769109042116,-333.0,0.000239,2]
[403055008,1769109042126,-5518.7219224,0.0002396,2]
[403055010,1769109042136,-1055.44697797,0.00024033,2]
[403055012,1769109042146,-166.66,0.00024238,2]
[403055014,1769109042155,-160.64543439,0.00024435,2]
[403055016,1769109042166,-150.0,0.00024435,2]
[403055019,1769109042175,-150.0,0.00024435,2]
[403055021,1769109042185,-500.0,0.00024435,2]
[403055023,1769109042195,-150.0,0.00024435,2]
[403055025,1769109042207,-150.0,0.00024435,2]
[403055027,1769109042217,-500.0,0.00024435,2]
[403055029,1769109042227,-250.0,0.00024435,2]
[403055031,1769109042237,-152.12544444,0.00024435,2]
[403055033,1769109042247,-150.0,0.00024435,2]
[403055035,1769109042258,-500.0,0.00024435,2]
[403055038,1769109042268,-181.0,0.00024435,2]
[403055040,1769109042279,-500.0,0.00024435,2]
[403055042,1769109042289,-150.0,0.00024435,2]
[403055044,1769109042299,-150.0,0.00024435,2]
[403055046,1769109042311,-500.0,0.00024435,2]
[403055048,1769109042321,-150.0,0.00024435,2]
[403055050,1769109042330,-500.0,0.00024435,2]
[403055052,1769109042341,-500.0,0.00024435,2]
[403055054,1769109042351,-150.0,0.00024435,2]
[403055056,1769109042361,-150.0,0.0002449,2]
[403055058,1769109042372,-250.0,0.0002449,2]
[403055061,1769109042382,-500.0,0.0002449,2]
[403055063,1769109042392,-150.0,0.0002449,2]
[403055065,1769109042402,-500.0,0.0002449,2]
[403055067,1769109042412,-150.0,0.0002449,2]
[403055069,1769109042422,-500.0,0.0002449,2]
[403055071,1769109042432,-500.0,0.0002449,2]
[403055073,1769109042442,-200.0,0.0002449,2]
[403055075,1769109042453,-500.0,0.0002449,2]
[403055077,1769109042463,-500.0,0.0002449,2]
[403055079,1769109042473,-500.0,0.0002449,2]
[403055081,1769109042483,-150.0,0.0002449,2]
[403055083,1769109042493,-150.0,0.00024545,2]
[403055085,1769109042504,-500.0,0.00024545,2]
[403055087,1769109042514,-150.0,0.00024545,2]
[403055089,1769109042525,-500.0,0.00024545,2]
[403055092,1769109042535,-500.0,0.00024545,2]
[403055094,1769109042544,-500.0,0.00024545,2]
[403055096,1769109042555,-300.0,0.00024545,2]
[403055098,1769109042565,-500.0,0.00024545,2]
[403055100,1769109042575,-500.0,0.00024545,2]
[403055102,1769109042585,-150.0,0.00024545,2]
[403055104,1769109042595,-150.0,0.00024599,2]
[403055106,1769109042605,-257.51653588,0.00024599,2]
[403055108,1769109042615,-150.0,0.00024599,2]
[403055110,1769109042625,-500.0,0.00024599,2]
[403055112,1769109042636,-500.0,0.00024599,2]
[403055114,1769109042646,-461.68383371,0.00024599,2]
[403055116,1769109042656,-500.0,0.00024599,2]
[403055119,1769109042667,-500.0,0.00024599,2]
[403055121,1769109042676,-201.7333692,0.00024599,2]
[403055123,1769109042686,-227.54993751,0.00024654,2]
[403055125,1769109042697,-150.0,0.00024654,2]
[403055127,1769109042707,-500.0,0.00024654,2]
[403055130,1769109042718,-331.44779673,0.00024654,2]
[403055132,1769109042728,-500.0,0.00024654,2]
[403055134,1769109042738,-500.0,0.00024654,2]
[403055136,1769109042750,-1000.0,0.00024658,2]
[403055137,1769109042761,-333.52,0.00024658,2]
[403055138,1769109042771,-150.0,0.00024658,2]
[403055139,1769109042783,-1301.13073605,0.0002466,2]
[403055140,1769109042793,-150.0,0.00024709,2]
[403055141,1769109042804,-500.0,0.00024709,2]
[403055142,1769109042815,-500.0,0.00024709,2]
[403055143,1769109042825,-500.0,0.00024709,2]
[403055145,1769109042835,-500.0,0.00024764,2]
[403055146,1769109042846,-360.2469951,0.00024764,2]
[403055147,1769109042856,-202.25809292,0.00024764,2]
[403055148,1769109042867,-500.0,0.00024819,2]
[403055149,1769109042877,-423.91045672,0.00024863,2]
[403055150,1769109042888,-152.29,0.00024863,2]
[403055151,1769109042898,-500.0,0.00024873,2]
[403055152,1769109042908,-150.0,0.00024873,2]
[403055153,1769109042919,-500.0,0.00024873,2]
[403055155,1769109042929,-500.0,0.00024873,2]
[403055156,1769109042939,-500.0,0.00024873,2]
[403055157,1769109042949,-500.0,0.00024873,2]
[403055160,1769109042962,-500.0,0.00024873,2]
[403055165,1769109042972,-500.0,0.00024873,2]
[403055168,1769109042982,-500.0,0.00024873,2]
[403055171,1769109042992,-500.0,0.00024873,2]
[403055174,1769109043002,-500.0,0.00024873,2]
[403055177,1769109043012,-500.0,0.00024873,2]
[403055180,1769109043023,-500.0,0.00024873,2]
[403055183,1769109043033,-500.0,0.00024873,2]
[403055186,1769109043043,-500.0,0.00024873,2]
[403055188,1769109043054,-500.0,0.00024873,2]
[403055190,1769109043065,-500.44726884,0.00024873,2]
[403055192,1769109043075,-500.0,0.00024873,2]
[403055196,1769109043086,-500.0,0.00024873,2]
[403055198,1769109043096,-500.0,0.00024873,2]
[403055200,1769109043107,-500.0,0.00024873,2]
[403055202,1769109043117,-500.0,0.00024873,2]
[403055204,1769109043128,-500.0,0.00024873,2]
[403055206,1769109043138,-150.0,0.00024873,2]
[403055208,1769109043148,-500.0,0.00024873,2]
[403055210,1769109043158,-500.0,0.00024873,2]
[403055212,1769109043169,-500.0,0.00024873,2]
[403055214,1769109043180,-500.0,0.00024873,2]
[403055216,1769109043190,-500.0,0.00024873,2]
[403055219,1769109043200,-500.0,0.00024873,2]
[403055221,1769109043210,-500.0,0.00024873,2]
[403055223,1769109043220,-500.0,0.00024873,2]
[403055225,1769109043230,-500.0,0.00024873,2]
[403055227,1769109043240,-500.0,0.00024873,2]
[403055229,1769109043250,-500.86844017,0.00024873,2]
[403055231,1769109043260,-500.0,0.00024873,2]
[403055233,1769109043270,-500.0,0.00024873,2]
[403055235,1769109043281,-500.0,0.00024873,2]
[403055237,1769109043291,-574.17089799,0.00024873,2]
[403055239,1769109043300,-562.63678791,0.00024873,2]
[403055241,1769109043311,-389.45608517,0.00024873,2]
[403055243,1769109043320,-500.0,0.00024873,2]
[403055245,1769109043330,-500.0,0.00024873,2]
[403055247,1769109043340,-500.0,0.00024873,2]
[403055250,1769109043350,-500.0,0.00024873,2]
[403055252,1769109043360,-500.0,0.00024873,2]
[403055254,1769109043371,-299801.470672,0.000249,2]
[403055256,1769109043381,-500.0,0.00024928,2]
[403055258,1769109043391,-3711.84591012,0.00024937,2]
[403055260,1769109043401,-500.0,0.00024983,2]
[403055262,1769109043412,-166.66,0.00024989,2]
[403055264,1769109043422,-721.77258118,0.00025,30]
[403055266,1769109043432,-500.0,0.00025038,2]
[403055268,1769109043442,-500.0,0.00025093,2]
[403055270,1769109043453,-500.0,0.00025147,2]
[403055303,1769109043754,-155.0,0.00025199,2]
[403055305,1769109043764,-500.0,0.00025202,2]
[403055306,1769109043774,-205.55038648,0.00025257,2]
[403055308,1769109043783,-5551.87908651,0.00025269,2]
[403055310,1769109043792,-1000.0,0.00025279,2]
[403055313,1769109043802,-16655.6372595,0.00025411,2]
[403055315,1769109043811,-800.0345526,0.00025421,2]
[403055317,1769109043821,-236.97822393,0.00025421,2]
[403055319,1769109043831,-1000.0,0.00025421,2]
[403055321,1769109043839,-1000.0,0.00025421,2]
[403055323,1769109043849,-1000.0,0.00025421,2]
[403055325,1769109043857,-1000.0,0.00025421,2]
[403055327,1769109043867,-1000.0,0.00025421,2]
[403055329,1769109043876,-1000.0,0.00025421,2]
[403055330,1769109043886,-1000.0,0.00025421,2]
[403055333,1769109043896,-1000.0,0.00025421,2]
[403055335,1769109043905,-1000.0,0.00025421,2]
[403055337,1769109043915,-1000.0,0.00025421,2]
[403055339,1769109043924,-1000.0,0.00025421,2]
[403055341,1769109043934,-1000.0,0.00025421,2]
[403055343,1769109043943,-1000.0,0.00025421,2]
[403055345,1769109043952,-1000.0,0.00025421,2]
[403055346,1769109043962,-1000.0,0.00025421,2]
[403055348,1769109043971,-1000.0,0.00025421,2]
[403055350,1769109043980,-1000.0,0.00025421,2]
[403055352,1769109043989,-1000.0,0.00025421,2]
[403055355,1769109043999,-250.0,0.00025421,2]
[403055357,1769109044009,-1000.0,0.00025421,2]
[403055358,1769109044018,-1000.0,0.00025421,2]
[403055359,1769109044029,-692.16316625,0.00025421,2]
[403055361,1769109044039,-1000.0,0.00025421,2]
[403055363,1769109044048,-1000.0,0.00025421,2]
[403055365,1769109044057,-1000.0,0.00025421,2]
[403055367,1769109044067,-639.47030969,0.00025421,2]
[403055369,1769109044078,-1000.0,0.00025421,2]
[403055371,1769109044087,-1000.0,0.00025421,2]
[403055373,1769109044096,-1000.0,0.00025421,2]
[403055375,1769109044105,-1000.0,0.00025421,2]
[403055377,1769109044115,-1000.0,0.00025421,2]
[403055379,1769109044124,-591.27334133,0.00025421,2]
[403055381,1769109044133,-1000.0,0.00025421,2]
[403055383,1769109044143,-1000.0,0.00025421,2]
[403055384,1769109044152,-1000.0,0.00025421,2]
[403055386,1769109044161,-1000.0,0.00025421,2]
[403055388,1769109044170,-1003.53038109,0.00025421,2]
[403055390,1769109044180,-2870.38606004,0.00025446,2]
[403055392,1769109044189,-1301.7,0.00025464,2]
[403055394,1769109044200,-152.98,0.00025517,120]
[403055396,1769109044209,-3893.1878285,0.00025556,2]
[403055398,1769109044218,-5551.87908651,0.00025614,2]
[403055400,1769109044227,-3706.63757538,0.00025624,2]
[403055402,1769109044237,-166.66,0.0002574,2]
[403055404,1769109044246,-679.0,0.00025786,2]
[403055406,1769109044255,-5950.87,0.00025804,2]
[403055408,1769109044266,-11103.758173,0.00025958,2]
[403055410,1769109044277,-1500.0,0.00025968,2]
[403055411,1769109044287,-899.63282818,0.00025968,2]
[403055413,1769109044296,-1500.0,0.00025968,2]
[403055415,1769109044306,-1500.0,0.00025968,2]
[403055417,1769109044315,-1500.0,0.00025968,2]
[403055419,1769109044324,-890.41015708,0.00025968,2]
[403055421,1769109044335,-1500.0,0.00025968,2]
[403055423,1769109044345,-1500.0,0.00025968,2]
[403055425,1769109044354,-1500.0,0.00025968,2]
[403055427,1769109044364,-1500.0,0.00025968,2]
[403055429,1769109044374,-1500.0,0.00025968,2]
[403055431,1769109044385,-1500.0,0.00025968,2]
[403055433,1769109044395,-201.18379417,0.00025968,2]
[403055435,1769109044404,-1500.0,0.00025968,2]
[403055437,1769109044414,-1500.0,0.00025968,2]
[403055439,1769109044423,-1500.0,0.00025968,2]
[403055441,1769109044432,-1500.0,0.00025968,2]
[403055443,1769109044442,-1500.0,0.00025968,2]
[403055445,1769109044452,-1500.0,0.00025968,2]
[403055446,1769109044461,-1500.0,0.00025968,2]
[403055448,1769109044471,-1500.0,0.00025968,2]
[403055450,1769109044481,-1146.49809015,0.00026026,2]
[403055452,1769109044492,-6171.0,0.00026172,2]
[403055454,1769109044501,-679.0,0.0002626,2]
[403055456,1769109044511,-679.0,0.0002631,7]
[403055458,1769109044522,-275.04718251,0.00026348,2]
[403055460,1769109044532,-166.66,0.0002649,2]
[403055462,1769109044543,-433.63745442,0.00026516,2]
[403055464,1769109044554,-1138.0,0.0002652,2]
[403055466,1769109044565,-5518.7219224,0.00026623,2]
[403055468,1769109044575,-9000.0,0.00026681,2]
[403055470,1769109044585,-322.6107,0.00026681,2]
[403055472,1769109044595,-174.61919141,0.00026681,2]
[403055475,1769109044605,-250.0,0.00026681,2]
[403055476,1769109044616,-250.0,0.00026681,2]
[403055478,1769109044626,-3210.0,0.00026681,2]
[403055480,1769109044635,-250.0,0.00026681,2]
[403055483,1769109044645,-854.2589148,0.00026681,2]
[403055484,1769109044655,-250.0,0.00026681,2]
[403055486,1769109044664,-302.46571259,0.00026681,2]
[403055488,1769109044673,-2497.8963692,0.00026681,2]
[403055490,1769109044683,-500.0,0.00026681,2]
[403055492,1769109044693,-500.0,0.00026681,2]
[403055494,1769109044703,-500.0,0.00026681,2]
[403055497,1769109044717,-500.0,0.00026681,2]
[403055498,1769109044726,-250.0,0.00026681,2]
[403055501,1769109044736,-500.0,0.00026681,2]
[403055503,1769109044752,-250.0,0.00026681,2]
[403055505,1769109044762,-500.0,0.00026681,2]
[403055507,1769109044773,-250.0,0.00026681,2]
[403055509,1769109044782,-500.0,0.00026681,2]
[403055511,1769109044792,-500.0,0.00026681,2]
[403055513,1769109044801,-500.0,0.00026681,2]
[403055515,1769109044811,-500.0,0.00026681,2]
[403055517,1769109044820,-500.0,0.00026681,2]
[403055519,1769109044829,-500.0,0.00026681,2]
[403055521,1769109044838,-500.0,0.00026681,2]
[403055523,1769109044848,-500.0,0.00026681,2]
[403055525,1769109044857,-500.0,0.00026681,2]
[403055527,1769109044867,-500.0,0.00026681,2]
[403055529,1769109044876,-500.0,0.00026681,2]
[403055531,1769109044886,-500.0,0.00026681,2]
[403055533,1769109044896,-500.0,0.00026681,2]
[403055535,1769109044906,-500.0,0.00026681,2]
[403055537,1769109044915,-500.0,0.00026681,2]
[403055539,1769109044925,-500.0,0.00026681,2]
[403055541,1769109044935,-500.0,0.00026681,2]
[403055543,1769109044944,-500.0,0.00026681,2]
[403055545,1769109044954,-500.0,0.00026681,2]
[403055547,1769109044964,-500.0,0.00026681,2]
[403055549,1769109044973,-500.0,0.00026681,2]
[403055551,1769109044982,-500.0,0.00026681,2]
[403055553,1769109044992,-500.0,0.00026681,2]
[403055555,1769109045001,-500.0,0.00026681,2]
[403055557,1769109045011,-500.0,0.00026681,2]
[403055559,1769109045022,-500.0,0.00026681,2]
[403055561,1769109045033,-500.0,0.00026681,2]
[403055563,1769109045042,-151.0,0.00026681,2]
[403055565,1769109045051,-151.0,0.00026681,2]
[403055567,1769109045061,-500.0,0.00026681,2]
[403055569,1769109045071,-151.0,0.00026681,2]
[403055571,1769109045080,-500.0,0.00026681,2]
[403055573,1769109045090,-151.0,0.00026681,2]
[403055575,1769109045099,-500.0,0.00026681,2]
[403055577,1769109045108,-500.0,0.00026681,2]
[403055579,1769109045118,-151.0,0.00026681,2]
[403055582,1769109045127,-500.0,0.00026681,2]
[403055584,1769109045138,-151.0,0.00026681,2]
[403055586,1769109045148,-151.0,0.00026681,2]
[403055588,1769109045157,-500.0,0.00026681,2]
[403055590,1769109045166,-151.0,0.00026681,2]
[403055592,1769109045176,-500.0,0.00026681,2]
[403055593,1769109045186,-151.0,0.00026681,2]
[403055595,1769109045195,-500.0,0.00026681,2]
[403055597,1769109045204,-151.0,0.00026681,2]
[403055599,1769109045213,-500.0,0.00026681,2]
[403055601,1769109045223,-151.0,0.00026681,2]
[403055603,1769109045233,-500.0,0.00026681,2]
[403055605,1769109045242,-500.0,0.00026681,2]
[403055607,1769109045251,-250.0,0.00026681,2]
[403055609,1769109045261,-250.0,0.00026681,2]
[403055611,1769109045270,-250.0,0.00026681,2]
[403055614,1769109045281,-250.0,0.00026681,2]
[403055616,1769109045291,-250.0,0.00026681,2]
[403055618,1769109045301,-250.0,0.00026681,2]
[403055620,1769109045314,-250.0,0.00026681,2]
[403055622,1769109045323,-250.0,0.00026681,2]
[403055624,1769109045333,-250.0,0.00026681,2]
[403055626,1769109045342,-250.0,0.00026681,2]
[403055628,1769109045352,-250.0,0.00026681,2]
[403055630,1769109045361,-1287.82,0.00027,7]
[403055632,1769109045371,-150.0,0.00027,2]
[403055634,1769109045381,-1138.0,0.00027008,2]
[403055635,1769109045391,-1265.0,0.00027105,3]
[403055636,1769109045402,-1265.0,0.00027105,3]
[403055637,1769109045411,-150.0,0.00027123,2]
[403055638,1769109045420,-909.0,0.00027157,2]
[403055639,1769109045430,-198.34698285,0.00027229,2]
[403055640,1769109045439,-885.86649465,0.00027229,2]
[403055641,1769109045450,-1804.23,0.00027295,2]
[403055643,1769109045459,-150.0,0.00027369,2]
[403055645,1769109045468,-1000.0,0.00027397,2]
[403055647,1769109045478,-333.52,0.00027397,2]
[403055649,1769109045487,-500.0,0.00027397,30]
[403055651,1769109045496,-300.0,0.00027397,2]
[403055653,1769109045506,-679.0,0.00027406,2]
[403055655,1769109045515,-909.0,0.00027431,7]
[403055657,1769109045525,-679.0,0.00027507,2]
[403055659,1769109045535,-1301.7,0.00027589,2]
[403055661,1769109045544,-523.0,0.00027653,9]
[403055663,1769109045553,-1000.0,0.00027671,2]
[403055665,1769109045562,-1138.0,0.00027696,2]
[403055667,1769109045572,-679.0,0.00027734,2]
[403055669,1769109045581,-918.64355495,0.00027777,2]
[403055671,1769109045591,-679.0,0.00027807,2]
[403055673,1769109045600,-1138.0,0.0002785,2]
[403055675,1769109045609,-909.0,0.00027888,2]
[403055677,1769109045618,-1958.0,0.000279,2]
[403055679,1769109045628,-150.61,0.00027939,2]
[403055681,1769109045638,-1000.0,0.00027945,2]
[403055683,1769109045647,-682.0,0.00027997,2]
[403055685,1769109045657,-322.6107,0.0002805,2]
[403055687,1769109045665,-3210.0,0.0002805,2]
[403055689,1769109045675,-679.0,0.00028078,2]
[403055691,1769109045685,-150.61,0.00028113,2]
[403055693,1769109045695,-3893.1878285,0.00028175,2]
[403055695,1769109045709,-679.0,0.00028175,2]
[403055697,1769109045718,-1000.0,0.00028219,2]
[403055699,1769109045728,-3706.63757538,0.00028265,2]
[403055702,1769109045738,-150.61,0.00028288,2]
[403055704,1769109045749,-679.0,0.00028303,2]
[403055706,1769109045759,-1138.0,0.00028316,2]
[403055708,1769109045768,-952.63336648,0.00028325,2]
[403055710,1769109045779,-1138.0,0.00028438,2]
[403055712,1769109045789,-150.61,0.00028463,2]
[403055714,1769109045798,-1138.0,0.00028486,2]
[403055716,1769109045808,-1000.0,0.00028493,2]
[403055718,1769109045818,-3711.84591012,0.00028556,2]
[403055720,1769109045827,-150.61,0.00028637,2]
[403055722,1769109045837,-1138.0,0.00028723,2]
[403055724,1769109045846,-1000.0,0.00028767,2]
[403055726,1769109045856,-909.0,0.00028784,2]
[403055728,1769109045865,-150.61,0.00028812,2]
[403055730,1769109045875,-267.15088654,0.00028963,14]
[403055732,1769109045884,-150.61,0.00028987,2]
[403055734,1769109045894,-2508.40434906,0.00029003,2]
[403055736,1769109045903,-1000.0,0.00029041,2]
[403055738,1769109045913,-1000.0,0.00029041,2]
[403055740,1769109045922,-1138.0,0.00029082,2]
[403055742,1769109045932,-1138.0,0.00029118,7]
[403055744,1769109045941,-150.61,0.00029161,2]